{"text_format":"1","workbook":"xlsx","n_sheets":7,"sheets":["TEORICO","Ejercicio 01","Ejercicio 02","Ejercicio 03","Ejercicio 04","Ejercicio 05","Hoja1"],"not_rendered":{"charts":0,"images":2,"macros":1,"external_links":0,"defined_names":5,"comments":0,"pivot_tables":0},"unopened":[],"bounds":{"document_bytes":16777216,"sheet_cells":100000,"rows_first":2000,"rows_last":500,"rows_between":2000,"halvings":0,"cell_chars":16384,"cell_head_chars":4096},"cells_cut":0,"cells_raw":0,"read":"whole","date_system":"1900"}

{"sheet":"TEORICO","index":0,"n_rows":0,"n_cols":0,"rows_kept":0,"cut":false,"hidden":false,"merged":[]}

{"sheet":"Ejercicio 01","index":1,"n_rows":0,"n_cols":0,"rows_kept":0,"cut":false,"hidden":false,"merged":[]}

{"sheet":"Ejercicio 02","index":2,"n_rows":997,"n_cols":9,"rows_kept":997,"cut":false,"hidden":false,"merged":[]}
[]
[]
[null,"Nombre","Apellido","Sucursal","Enero","Febrero","Marzo","Total","Promedio"]
[null,"Javier","Aguilar","Lima",85145,92899,26960,{"$f":"IF(G4=\"\",\"\",SUM(E4:G4))","v":205004},{"$f":"IF(G4=\"\",\"\",AVERAGE(E4:G4))","v":68334.666666666672}]
[null,"María","Borda","Arequipa",84803,69642,84184,{"$f":"IF(G5=\"\",\"\",SUM(E5:G5))","v":238629},{"$f":"IF(G5=\"\",\"\",AVERAGE(E5:G5))","v":79543}]
[null,"José","Bryce","Trujillo",32521,76534,94299,203354,67784.666666666672]
[null,"Estela","Calderón","Chiclayo",34281,40328,11692,86301,28767]
[null,"Francisco","Cárdenas","Piura",18264,62469,29946,110679,36893]
[null,"Andrés","Cervantes","Ayacucho",17152,23153,88056,128361,42787]
[null,"Melania","Chávez","Lima",77069,40416,53232,170717,56905.666666666664]
[null,"Magdyel","Chumpitaz","Arequipa",90196,47127,20152,157475,52491.666666666664]
[null,"Lazslo","Contreras","Trujillo",45978,54077,77279,177334,59111.333333333336]
[null,"Efraín","Díaz","Chiclayo",57926,90363,61737,210026,70008.666666666672]
[null,"Rosana","Fernández","Trujillo",79867,76454,56530,212851,70950.333333333328]
[null,"Piero","Guerrero","Chiclayo",74192,83011,87361,244564,81521.333333333328]
[null,"Miguel","Kovacs","Piura",96587,46732,16608,159927,53309]
[null,"Pedro","La Guardia","Ayacucho",12250,77462,94059,183771,61257]
[null,"Mario","Lombardi","Lima",72995,12901,17199,103095,34365]
[null,"Alfredo","López","Arequipa",65262,26767,23071,115100,38366.666666666664]
[null,"Ernesto","Oblitas","Piura",58630,98759,80251,237640,79213.333333333328]
[null,"Jorge","Oviedo","Ayacucho",42897,43175,80012,166084,55361.333333333336]
[null,"Gustavo","Paredes","Lima",43224,16274,92572,152070,50690]
[null,"Juan","Peredo","Arequipa",21543,81625,24877,128045,42681.666666666664]
[null,"Héctor","Pimentel","Arequipa",61156,87549,61594,210299,70099.666666666672]
[null,"Claudio","Pino","Trujillo",49542,26591,21125,97258,32419.333333333332]
[null,"Paolo","Pizarro","Chiclayo",87126,67508,76407,231041,77013.666666666672]
[null,"Luis","Pozada","Piura",21109,96663,95217,212989,70996.333333333328]
[null,"Alfredo","Ugaz","Ayacucho",20142,42038,50803,112983,37661]
[null,"Santiago","Urbina","Lima",39059,71723,57633,168415,56138.333333333336]
[null,"Yolanda","Vargas","Arequipa",56517,32534,74419,163470,54490]
[null,"Alicia","Wiese","Trujillo",32403,40226,90368,162997,54332.333333333336]
[null,null,null,null,null,null,null,"",""]
[null,null,null,null,null,null,null,"",""]
[null,null,null,null,null,null,null,"",""]
[null,null,null,null,null,null,null,"",""]
[null,null,null,null,null,null,null,"",""]
[null,null,null,null,null,null,null,"",""]
[null,null,null,null,null,null,null,"",""]
[null,null,null,null,null,null,null,"",""]
[null,null,null,null,null,null,null,"",""]
[null,null,null,null,null,null,null,"",""]
[null,null,null,null,null,null,null,"",""]
[null,null,null,null,null,null,null,"",""]
[null,null,null,null,null,null,null,"",""]
[null,null,null,null,null,null,null,"",""]
[null,null,null,null,null,null,null,"",""]
[null,null,null,null,null,null,null,"",""]
[null,null,null,null,null,null,null,"",""]
[null,null,null,null,null,null,null,"",""]
[null,null,null,null,null,null,null,"",""]
[null,null,null,null,null,null,null,"",""]
[null,null,null,null,null,null,null,"",""]
[null,null,null,null,null,null,null,"",""]
[null,null,null,null,null,null,null,"",""]
[null,null,null,null,null,null,null,"",""]
[null,null,null,null,null,null,null,"",""]
[null,null,null,null,null,null,null,"",""]
[null,null,null,null,null,null,null,"",""]
[null,null,null,null,null,null,null,"",""]
[null,null,null,null,null,null,null,"",""]
[null,null,null,null,null,null,null,"",""]
[null,null,null,null,null,null,null,"",""]
[null,null,null,null,null,null,null,"",""]
[null,null,null,null,null,null,null,"",""]
[null,null,null,null,null,null,null,"",""]
[null,null,null,null,null,null,null,"",""]
[null,null,null,null,null,null,null,"",""]
[null,null,null,null,null,null,null,"",""]
[null,null,null,null,null,null,null,{"$f":"IF(G69=\"\",\"\",SUM(E69:G69))","v":""},{"$f":"IF(G69=\"\",\"\",AVERAGE(E69:G69))","v":""}]
[null,null,null,null,null,null,null,"",""]
[null,null,null,null,null,null,null,"",""]
[null,null,null,null,null,null,null,"",""]
[null,null,null,null,null,null,null,"",""]
[null,null,null,null,null,null,null,"",""]
[null,null,null,null,null,null,null,"",""]
[null,null,null,null,null,null,null,"",""]
[null,null,null,null,null,null,null,"",""]
[null,null,null,null,null,null,null,"",""]
[null,null,null,null,null,null,null,"",""]
[null,null,null,null,null,null,null,"",""]
[null,null,null,null,null,null,null,"",""]
[null,null,null,null,null,null,null,"",""]
[null,null,null,null,null,null,null,"",""]
[null,null,null,null,null,null,null,"",""]
[null,null,null,null,null,null,null,"",""]
[null,null,null,null,null,null,null,"",""]
[null,null,null,null,null,null,null,"",""]
[null,null,null,null,null,null,null,"",""]
[null,null,null,null,null,null,null,"",""]
[null,null,null,null,null,null,null,"",""]
[null,null,null,null,null,null,null,"",""]
[null,null,null,null,null,null,null,"",""]
[null,null,null,null,null,null,null,"",""]
[null,null,null,null,null,null,null,"",""]
[null,null,null,null,null,null,null,"",""]
[null,null,null,null,null,null,null,"",""]
[null,null,null,null,null,null,null,"",""]
[null,null,null,null,null,null,null,"",""]
[null,null,null,null,null,null,null,"",""]
[null,null,null,null,null,null,null,"",""]
[null,null,null,null,null,null,null,"",""]
[null,null,null,null,null,null,null,"",""]
[null,null,null,null,null,null,null,"",""]
[null,null,null,null,null,null,null,"",""]
[null,null,null,null,null,null,null,"",""]
[null,null,null,null,null,null,null,"",""]
[null,null,null,null,null,null,null,"",""]
[null,null,null,null,null,null,null,"",""]
[null,null,null,null,null,null,null,"",""]
[null,null,null,null,null,null,null,"",""]
[null,null,null,null,null,null,null,"",""]
[null,null,null,null,null,null,null,"",""]
[null,null,null,null,null,null,null,"",""]
[null,null,null,null,null,null,null,"",""]
[null,null,null,null,null,null,null,"",""]
[null,null,null,null,null,null,null,"",""]
[null,null,null,null,null,null,null,"",""]
[null,null,null,null,null,null,null,"",""]
[null,null,null,null,null,null,null,"",""]
[null,null,null,null,null,null,null,"",""]
[null,null,null,null,null,null,null,"",""]
[null,null,null,null,null,null,null,"",""]
[null,null,null,null,null,null,null,"",""]
[null,null,null,null,null,null,null,"",""]
[null,null,null,null,null,null,null,"",""]
[null,null,null,null,null,null,null,"",""]
[null,null,null,null,null,null,null,"",""]
[null,null,null,null,null,null,null,"",""]
[null,null,null,null,null,null,null,"",""]
[null,null,null,null,null,null,null,"",""]
[null,null,null,null,null,null,null,"",""]
[null,null,null,null,null,null,null,"",""]
[null,null,null,null,null,null,null,{"$f":"IF(G133=\"\",\"\",SUM(E133:G133))","v":""},{"$f":"IF(G133=\"\",\"\",AVERAGE(E133:G133))","v":""}]
[null,null,null,null,null,null,null,"",""]
[null,null,null,null,null,null,null,"",""]
[null,null,null,null,null,null,null,"",""]
[null,null,null,null,null,null,null,"",""]
[null,null,null,null,null,null,null,"",""]
[null,null,null,null,null,null,null,"",""]
[null,null,null,null,null,null,null,"",""]
[null,null,null,null,null,null,null,"",""]
[null,null,null,null,null,null,null,"",""]
[null,null,null,null,null,null,null,"",""]
[null,null,null,null,null,null,null,"",""]
[null,null,null,null,null,null,null,"",""]
[null,null,null,null,null,null,null,"",""]
[null,null,null,null,null,null,null,"",""]
[null,null,null,null,null,null,null,"",""]
[null,null,null,null,null,null,null,"",""]
[null,null,null,null,null,null,null,"",""]
[null,null,null,null,null,null,null,"",""]
[null,null,null,null,null,null,null,"",""]
[null,null,null,null,null,null,null,"",""]
[null,null,null,null,null,null,null,"",""]
[null,null,null,null,null,null,null,"",""]
[null,null,null,null,null,null,null,"",""]
[null,null,null,null,null,null,null,"",""]
[null,null,null,null,null,null,null,"",""]
[null,null,null,null,null,null,null,"",""]
[null,null,null,null,null,null,null,"",""]
[null,null,null,null,null,null,null,"",""]
[null,null,null,null,null,null,null,"",""]
[null,null,null,null,null,null,null,"",""]
[null,null,null,null,null,null,null,"",""]
[null,null,null,null,null,null,null,"",""]
[null,null,null,null,null,null,null,"",""]
[null,null,null,null,null,null,null,"",""]
[null,null,null,null,null,null,null,"",""]
[null,null,null,null,null,null,null,"",""]
[null,null,null,null,null,null,null,"",""]
[null,null,null,null,null,null,null,"",""]
[null,null,null,null,null,null,null,"",""]
[null,null,null,null,null,null,null,"",""]
[null,null,null,null,null,null,null,"",""]
[null,null,null,null,null,null,null,"",""]
[null,null,null,null,null,null,null,"",""]
[null,null,null,null,null,null,null,"",""]
[null,null,null,null,null,null,null,"",""]
[null,null,null,null,null,null,null,"",""]
[null,null,null,null,null,null,null,"",""]
[null,null,null,null,null,null,null,"",""]
[null,null,null,null,null,null,null,"",""]
[null,null,null,null,null,null,null,"",""]
[null,null,null,null,null,null,null,"",""]
[null,null,null,null,null,null,null,"",""]
[null,null,null,null,null,null,null,"",""]
[null,null,null,null,null,null,null,"",""]
[null,null,null,null,null,null,null,"",""]
[null,null,null,null,null,null,null,"",""]
[null,null,null,null,null,null,null,"",""]
[null,null,null,null,null,null,null,"",""]
[null,null,null,null,null,null,null,"",""]
[null,null,null,null,null,null,null,"",""]
[null,null,null,null,null,null,null,"",""]
[null,null,null,null,null,null,null,"",""]
[null,null,null,null,null,null,null,"",""]
[null,null,null,null,null,null,null,{"$f":"IF(G197=\"\",\"\",SUM(E197:G197))","v":""},{"$f":"IF(G197=\"\",\"\",AVERAGE(E197:G197))","v":""}]
[null,null,null,null,null,null,null,"",""]
[null,null,null,null,null,null,null,"",""]
[null,null,null,null,null,null,null,"",""]
[null,null,null,null,null,null,null,"",""]
[null,null,null,null,null,null,null,"",""]
[null,null,null,null,null,null,null,"",""]
[null,null,null,null,null,null,null,"",""]
[null,null,null,null,null,null,null,"",""]
[null,null,null,null,null,null,null,"",""]
[null,null,null,null,null,null,null,"",""]
[null,null,null,null,null,null,null,"",""]
[null,null,null,null,null,null,null,"",""]
[null,null,null,null,null,null,null,"",""]
[null,null,null,null,null,null,null,"",""]
[null,null,null,null,null,null,null,"",""]
[null,null,null,null,null,null,null,"",""]
[null,null,null,null,null,null,null,"",""]
[null,null,null,null,null,null,null,"",""]
[null,null,null,null,null,null,null,"",""]
[null,null,null,null,null,null,null,"",""]
[null,null,null,null,null,null,null,"",""]
[null,null,null,null,null,null,null,"",""]
[null,null,null,null,null,null,null,"",""]
[null,null,null,null,null,null,null,"",""]
[null,null,null,null,null,null,null,"",""]
[null,null,null,null,null,null,null,"",""]
[null,null,null,null,null,null,null,"",""]
[null,null,null,null,null,null,null,"",""]
[null,null,null,null,null,null,null,"",""]
[null,null,null,null,null,null,null,"",""]
[null,null,null,null,null,null,null,"",""]
[null,null,null,null,null,null,null,"",""]
[null,null,null,null,null,null,null,"",""]
[null,null,null,null,null,null,null,"",""]
[null,null,null,null,null,null,null,"",""]
[null,null,null,null,null,null,null,"",""]
[null,null,null,null,null,null,null,"",""]
[null,null,null,null,null,null,null,"",""]
[null,null,null,null,null,null,null,"",""]
[null,null,null,null,null,null,null,"",""]
[null,null,null,null,null,null,null,"",""]
[null,null,null,null,null,null,null,"",""]
[null,null,null,null,null,null,null,"",""]
[null,null,null,null,null,null,null,"",""]
[null,null,null,null,null,null,null,"",""]
[null,null,null,null,null,null,null,"",""]
[null,null,null,null,null,null,null,"",""]
[null,null,null,null,null,null,null,"",""]
[null,null,null,null,null,null,null,"",""]
[null,null,null,null,null,null,null,"",""]
[null,null,null,null,null,null,null,"",""]
[null,null,null,null,null,null,null,"",""]
[null,null,null,null,null,null,null,"",""]
[null,null,null,null,null,null,null,"",""]
[null,null,null,null,null,null,null,"",""]
[null,null,null,null,null,null,null,"",""]
[null,null,null,null,null,null,null,"",""]
[null,null,null,null,null,null,null,"",""]
[null,null,null,null,null,null,null,"",""]
[null,null,null,null,null,null,null,"",""]
[null,null,null,null,null,null,null,"",""]
[null,null,null,null,null,null,null,"",""]
[null,null,null,null,null,null,null,"",""]
[null,null,null,null,null,null,null,{"$f":"IF(G261=\"\",\"\",SUM(E261:G261))","v":""},{"$f":"IF(G261=\"\",\"\",AVERAGE(E261:G261))","v":""}]
[null,null,null,null,null,null,null,"",""]
[null,null,null,null,null,null,null,"",""]
[null,null,null,null,null,null,null,"",""]
[null,null,null,null,null,null,null,"",""]
[null,null,null,null,null,null,null,"",""]
[null,null,null,null,null,null,null,"",""]
[null,null,null,null,null,null,null,"",""]
[null,null,null,null,null,null,null,"",""]
[null,null,null,null,null,null,null,"",""]
[null,null,null,null,null,null,null,"",""]
[null,null,null,null,null,null,null,"",""]
[null,null,null,null,null,null,null,"",""]
[null,null,null,null,null,null,null,"",""]
[null,null,null,null,null,null,null,"",""]
[null,null,null,null,null,null,null,"",""]
[null,null,null,null,null,null,null,"",""]
[null,null,null,null,null,null,null,"",""]
[null,null,null,null,null,null,null,"",""]
[null,null,null,null,null,null,null,"",""]
[null,null,null,null,null,null,null,"",""]
[null,null,null,null,null,null,null,"",""]
[null,null,null,null,null,null,null,"",""]
[null,null,null,null,null,null,null,"",""]
[null,null,null,null,null,null,null,"",""]
[null,null,null,null,null,null,null,"",""]
[null,null,null,null,null,null,null,"",""]
[null,null,null,null,null,null,null,"",""]
[null,null,null,null,null,null,null,"",""]
[null,null,null,null,null,null,null,"",""]
[null,null,null,null,null,null,null,"",""]
[null,null,null,null,null,null,null,"",""]
[null,null,null,null,null,null,null,"",""]
[null,null,null,null,null,null,null,"",""]
[null,null,null,null,null,null,null,"",""]
[null,null,null,null,null,null,null,"",""]
[null,null,null,null,null,null,null,"",""]
[null,null,null,null,null,null,null,"",""]
[null,null,null,null,null,null,null,"",""]
[null,null,null,null,null,null,null,"",""]
[null,null,null,null,null,null,null,"",""]
[null,null,null,null,null,null,null,"",""]
[null,null,null,null,null,null,null,"",""]
[null,null,null,null,null,null,null,"",""]
[null,null,null,null,null,null,null,"",""]
[null,null,null,null,null,null,null,"",""]
[null,null,null,null,null,null,null,"",""]
[null,null,null,null,null,null,null,"",""]
[null,null,null,null,null,null,null,"",""]
[null,null,null,null,null,null,null,"",""]
[null,null,null,null,null,null,null,"",""]
[null,null,null,null,null,null,null,"",""]
[null,null,null,null,null,null,null,"",""]
[null,null,null,null,null,null,null,"",""]
[null,null,null,null,null,null,null,"",""]
[null,null,null,null,null,null,null,"",""]
[null,null,null,null,null,null,null,"",""]
[null,null,null,null,null,null,null,"",""]
[null,null,null,null,null,null,null,"",""]
[null,null,null,null,null,null,null,"",""]
[null,null,null,null,null,null,null,"",""]
[null,null,null,null,null,null,null,"",""]
[null,null,null,null,null,null,null,"",""]
[null,null,null,null,null,null,null,"",""]
[null,null,null,null,null,null,null,{"$f":"IF(G325=\"\",\"\",SUM(E325:G325))","v":""},{"$f":"IF(G325=\"\",\"\",AVERAGE(E325:G325))","v":""}]
[null,null,null,null,null,null,null,"",""]
[null,null,null,null,null,null,null,"",""]
[null,null,null,null,null,null,null,"",""]
[null,null,null,null,null,null,null,"",""]
[null,null,null,null,null,null,null,"",""]
[null,null,null,null,null,null,null,"",""]
[null,null,null,null,null,null,null,"",""]
[null,null,null,null,null,null,null,"",""]
[null,null,null,null,null,null,null,"",""]
[null,null,null,null,null,null,null,"",""]
[null,null,null,null,null,null,null,"",""]
[null,null,null,null,null,null,null,"",""]
[null,null,null,null,null,null,null,"",""]
[null,null,null,null,null,null,null,"",""]
[null,null,null,null,null,null,null,"",""]
[null,null,null,null,null,null,null,"",""]
[null,null,null,null,null,null,null,"",""]
[null,null,null,null,null,null,null,"",""]
[null,null,null,null,null,null,null,"",""]
[null,null,null,null,null,null,null,"",""]
[null,null,null,null,null,null,null,"",""]
[null,null,null,null,null,null,null,"",""]
[null,null,null,null,null,null,null,"",""]
[null,null,null,null,null,null,null,"",""]
[null,null,null,null,null,null,null,"",""]
[null,null,null,null,null,null,null,"",""]
[null,null,null,null,null,null,null,"",""]
[null,null,null,null,null,null,null,"",""]
[null,null,null,null,null,null,null,"",""]
[null,null,null,null,null,null,null,"",""]
[null,null,null,null,null,null,null,"",""]
[null,null,null,null,null,null,null,"",""]
[null,null,null,null,null,null,null,"",""]
[null,null,null,null,null,null,null,"",""]
[null,null,null,null,null,null,null,"",""]
[null,null,null,null,null,null,null,"",""]
[null,null,null,null,null,null,null,"",""]
[null,null,null,null,null,null,null,"",""]
[null,null,null,null,null,null,null,"",""]
[null,null,null,null,null,null,null,"",""]
[null,null,null,null,null,null,null,"",""]
[null,null,null,null,null,null,null,"",""]
[null,null,null,null,null,null,null,"",""]
[null,null,null,null,null,null,null,"",""]
[null,null,null,null,null,null,null,"",""]
[null,null,null,null,null,null,null,"",""]
[null,null,null,null,null,null,null,"",""]
[null,null,null,null,null,null,null,"",""]
[null,null,null,null,null,null,null,"",""]
[null,null,null,null,null,null,null,"",""]
[null,null,null,null,null,null,null,"",""]
[null,null,null,null,null,null,null,"",""]
[null,null,null,null,null,null,null,"",""]
[null,null,null,null,null,null,null,"",""]
[null,null,null,null,null,null,null,"",""]
[null,null,null,null,null,null,null,"",""]
[null,null,null,null,null,null,null,"",""]
[null,null,null,null,null,null,null,"",""]
[null,null,null,null,null,null,null,"",""]
[null,null,null,null,null,null,null,"",""]
[null,null,null,null,null,null,null,"",""]
[null,null,null,null,null,null,null,"",""]
[null,null,null,null,null,null,null,"",""]
[null,null,null,null,null,null,null,{"$f":"IF(G389=\"\",\"\",SUM(E389:G389))","v":""},{"$f":"IF(G389=\"\",\"\",AVERAGE(E389:G389))","v":""}]
[null,null,null,null,null,null,null,"",""]
[null,null,null,null,null,null,null,"",""]
[null,null,null,null,null,null,null,"",""]
[null,null,null,null,null,null,null,"",""]
[null,null,null,null,null,null,null,"",""]
[null,null,null,null,null,null,null,"",""]
[null,null,null,null,null,null,null,"",""]
[null,null,null,null,null,null,null,"",""]
[null,null,null,null,null,null,null,"",""]
[null,null,null,null,null,null,null,"",""]
[null,null,null,null,null,null,null,"",""]
[null,null,null,null,null,null,null,"",""]
[null,null,null,null,null,null,null,"",""]
[null,null,null,null,null,null,null,"",""]
[null,null,null,null,null,null,null,"",""]
[null,null,null,null,null,null,null,"",""]
[null,null,null,null,null,null,null,"",""]
[null,null,null,null,null,null,null,"",""]
[null,null,null,null,null,null,null,"",""]
[null,null,null,null,null,null,null,"",""]
[null,null,null,null,null,null,null,"",""]
[null,null,null,null,null,null,null,"",""]
[null,null,null,null,null,null,null,"",""]
[null,null,null,null,null,null,null,"",""]
[null,null,null,null,null,null,null,"",""]
[null,null,null,null,null,null,null,"",""]
[null,null,null,null,null,null,null,"",""]
[null,null,null,null,null,null,null,"",""]
[null,null,null,null,null,null,null,"",""]
[null,null,null,null,null,null,null,"",""]
[null,null,null,null,null,null,null,"",""]
[null,null,null,null,null,null,null,"",""]
[null,null,null,null,null,null,null,"",""]
[null,null,null,null,null,null,null,"",""]
[null,null,null,null,null,null,null,"",""]
[null,null,null,null,null,null,null,"",""]
[null,null,null,null,null,null,null,"",""]
[null,null,null,null,null,null,null,"",""]
[null,null,null,null,null,null,null,"",""]
[null,null,null,null,null,null,null,"",""]
[null,null,null,null,null,null,null,"",""]
[null,null,null,null,null,null,null,"",""]
[null,null,null,null,null,null,null,"",""]
[null,null,null,null,null,null,null,"",""]
[null,null,null,null,null,null,null,"",""]
[null,null,null,null,null,null,null,"",""]
[null,null,null,null,null,null,null,"",""]
[null,null,null,null,null,null,null,"",""]
[null,null,null,null,null,null,null,"",""]
[null,null,null,null,null,null,null,"",""]
[null,null,null,null,null,null,null,"",""]
[null,null,null,null,null,null,null,"",""]
[null,null,null,null,null,null,null,"",""]
[null,null,null,null,null,null,null,"",""]
[null,null,null,null,null,null,null,"",""]
[null,null,null,null,null,null,null,"",""]
[null,null,null,null,null,null,null,"",""]
[null,null,null,null,null,null,null,"",""]
[null,null,null,null,null,null,null,"",""]
[null,null,null,null,null,null,null,"",""]
[null,null,null,null,null,null,null,"",""]
[null,null,null,null,null,null,null,"",""]
[null,null,null,null,null,null,null,"",""]
[null,null,null,null,null,null,null,{"$f":"IF(G453=\"\",\"\",SUM(E453:G453))","v":""},{"$f":"IF(G453=\"\",\"\",AVERAGE(E453:G453))","v":""}]
[null,null,null,null,null,null,null,"",""]
[null,null,null,null,null,null,null,"",""]
[null,null,null,null,null,null,null,"",""]
[null,null,null,null,null,null,null,"",""]
[null,null,null,null,null,null,null,"",""]
[null,null,null,null,null,null,null,"",""]
[null,null,null,null,null,null,null,"",""]
[null,null,null,null,null,null,null,"",""]
[null,null,null,null,null,null,null,"",""]
[null,null,null,null,null,null,null,"",""]
[null,null,null,null,null,null,null,"",""]
[null,null,null,null,null,null,null,"",""]
[null,null,null,null,null,null,null,"",""]
[null,null,null,null,null,null,null,"",""]
[null,null,null,null,null,null,null,"",""]
[null,null,null,null,null,null,null,"",""]
[null,null,null,null,null,null,null,"",""]
[null,null,null,null,null,null,null,"",""]
[null,null,null,null,null,null,null,"",""]
[null,null,null,null,null,null,null,"",""]
[null,null,null,null,null,null,null,"",""]
[null,null,null,null,null,null,null,"",""]
[null,null,null,null,null,null,null,"",""]
[null,null,null,null,null,null,null,"",""]
[null,null,null,null,null,null,null,"",""]
[null,null,null,null,null,null,null,"",""]
[null,null,null,null,null,null,null,"",""]
[null,null,null,null,null,null,null,"",""]
[null,null,null,null,null,null,null,"",""]
[null,null,null,null,null,null,null,"",""]
[null,null,null,null,null,null,null,"",""]
[null,null,null,null,null,null,null,"",""]
[null,null,null,null,null,null,null,"",""]
[null,null,null,null,null,null,null,"",""]
[null,null,null,null,null,null,null,"",""]
[null,null,null,null,null,null,null,"",""]
[null,null,null,null,null,null,null,"",""]
[null,null,null,null,null,null,null,"",""]
[null,null,null,null,null,null,null,"",""]
[null,null,null,null,null,null,null,"",""]
[null,null,null,null,null,null,null,"",""]
[null,null,null,null,null,null,null,"",""]
[null,null,null,null,null,null,null,"",""]
[null,null,null,null,null,null,null,"",""]
[null,null,null,null,null,null,null,"",""]
[null,null,null,null,null,null,null,"",""]
[null,null,null,null,null,null,null,"",""]
[null,null,null,null,null,null,null,"",""]
[null,null,null,null,null,null,null,"",""]
[null,null,null,null,null,null,null,"",""]
[null,null,null,null,null,null,null,"",""]
[null,null,null,null,null,null,null,"",""]
[null,null,null,null,null,null,null,"",""]
[null,null,null,null,null,null,null,"",""]
[null,null,null,null,null,null,null,"",""]
[null,null,null,null,null,null,null,"",""]
[null,null,null,null,null,null,null,"",""]
[null,null,null,null,null,null,null,"",""]
[null,null,null,null,null,null,null,"",""]
[null,null,null,null,null,null,null,"",""]
[null,null,null,null,null,null,null,"",""]
[null,null,null,null,null,null,null,"",""]
[null,null,null,null,null,null,null,"",""]
[null,null,null,null,null,null,null,{"$f":"IF(G517=\"\",\"\",SUM(E517:G517))","v":""},{"$f":"IF(G517=\"\",\"\",AVERAGE(E517:G517))","v":""}]
[null,null,null,null,null,null,null,"",""]
[null,null,null,null,null,null,null,"",""]
[null,null,null,null,null,null,null,"",""]
[null,null,null,null,null,null,null,"",""]
[null,null,null,null,null,null,null,"",""]
[null,null,null,null,null,null,null,"",""]
[null,null,null,null,null,null,null,"",""]
[null,null,null,null,null,null,null,"",""]
[null,null,null,null,null,null,null,"",""]
[null,null,null,null,null,null,null,"",""]
[null,null,null,null,null,null,null,"",""]
[null,null,null,null,null,null,null,"",""]
[null,null,null,null,null,null,null,"",""]
[null,null,null,null,null,null,null,"",""]
[null,null,null,null,null,null,null,"",""]
[null,null,null,null,null,null,null,"",""]
[null,null,null,null,null,null,null,"",""]
[null,null,null,null,null,null,null,"",""]
[null,null,null,null,null,null,null,"",""]
[null,null,null,null,null,null,null,"",""]
[null,null,null,null,null,null,null,"",""]
[null,null,null,null,null,null,null,"",""]
[null,null,null,null,null,null,null,"",""]
[null,null,null,null,null,null,null,"",""]
[null,null,null,null,null,null,null,"",""]
[null,null,null,null,null,null,null,"",""]
[null,null,null,null,null,null,null,"",""]
[null,null,null,null,null,null,null,"",""]
[null,null,null,null,null,null,null,"",""]
[null,null,null,null,null,null,null,"",""]
[null,null,null,null,null,null,null,"",""]
[null,null,null,null,null,null,null,"",""]
[null,null,null,null,null,null,null,"",""]
[null,null,null,null,null,null,null,"",""]
[null,null,null,null,null,null,null,"",""]
[null,null,null,null,null,null,null,"",""]
[null,null,null,null,null,null,null,"",""]
[null,null,null,null,null,null,null,"",""]
[null,null,null,null,null,null,null,"",""]
[null,null,null,null,null,null,null,"",""]
[null,null,null,null,null,null,null,"",""]
[null,null,null,null,null,null,null,"",""]
[null,null,null,null,null,null,null,"",""]
[null,null,null,null,null,null,null,"",""]
[null,null,null,null,null,null,null,"",""]
[null,null,null,null,null,null,null,"",""]
[null,null,null,null,null,null,null,"",""]
[null,null,null,null,null,null,null,"",""]
[null,null,null,null,null,null,null,"",""]
[null,null,null,null,null,null,null,"",""]
[null,null,null,null,null,null,null,"",""]
[null,null,null,null,null,null,null,"",""]
[null,null,null,null,null,null,null,"",""]
[null,null,null,null,null,null,null,"",""]
[null,null,null,null,null,null,null,"",""]
[null,null,null,null,null,null,null,"",""]
[null,null,null,null,null,null,null,"",""]
[null,null,null,null,null,null,null,"",""]
[null,null,null,null,null,null,null,"",""]
[null,null,null,null,null,null,null,"",""]
[null,null,null,null,null,null,null,"",""]
[null,null,null,null,null,null,null,"",""]
[null,null,null,null,null,null,null,"",""]
[null,null,null,null,null,null,null,{"$f":"IF(G581=\"\",\"\",SUM(E581:G581))","v":""},{"$f":"IF(G581=\"\",\"\",AVERAGE(E581:G581))","v":""}]
[null,null,null,null,null,null,null,"",""]
[null,null,null,null,null,null,null,"",""]
[null,null,null,null,null,null,null,"",""]
[null,null,null,null,null,null,null,"",""]
[null,null,null,null,null,null,null,"",""]
[null,null,null,null,null,null,null,"",""]
[null,null,null,null,null,null,null,"",""]
[null,null,null,null,null,null,null,"",""]
[null,null,null,null,null,null,null,"",""]
[null,null,null,null,null,null,null,"",""]
[null,null,null,null,null,null,null,"",""]
[null,null,null,null,null,null,null,"",""]
[null,null,null,null,null,null,null,"",""]
[null,null,null,null,null,null,null,"",""]
[null,null,null,null,null,null,null,"",""]
[null,null,null,null,null,null,null,"",""]
[null,null,null,null,null,null,null,"",""]
[null,null,null,null,null,null,null,"",""]
[null,null,null,null,null,null,null,"",""]
[null,null,null,null,null,null,null,"",""]
[null,null,null,null,null,null,null,"",""]
[null,null,null,null,null,null,null,"",""]
[null,null,null,null,null,null,null,"",""]
[null,null,null,null,null,null,null,"",""]
[null,null,null,null,null,null,null,"",""]
[null,null,null,null,null,null,null,"",""]
[null,null,null,null,null,null,null,"",""]
[null,null,null,null,null,null,null,"",""]
[null,null,null,null,null,null,null,"",""]
[null,null,null,null,null,null,null,"",""]
[null,null,null,null,null,null,null,"",""]
[null,null,null,null,null,null,null,"",""]
[null,null,null,null,null,null,null,"",""]
[null,null,null,null,null,null,null,"",""]
[null,null,null,null,null,null,null,"",""]
[null,null,null,null,null,null,null,"",""]
[null,null,null,null,null,null,null,"",""]
[null,null,null,null,null,null,null,"",""]
[null,null,null,null,null,null,null,"",""]
[null,null,null,null,null,null,null,"",""]
[null,null,null,null,null,null,null,"",""]
[null,null,null,null,null,null,null,"",""]
[null,null,null,null,null,null,null,"",""]
[null,null,null,null,null,null,null,"",""]
[null,null,null,null,null,null,null,"",""]
[null,null,null,null,null,null,null,"",""]
[null,null,null,null,null,null,null,"",""]
[null,null,null,null,null,null,null,"",""]
[null,null,null,null,null,null,null,"",""]
[null,null,null,null,null,null,null,"",""]
[null,null,null,null,null,null,null,"",""]
[null,null,null,null,null,null,null,"",""]
[null,null,null,null,null,null,null,"",""]
[null,null,null,null,null,null,null,"",""]
[null,null,null,null,null,null,null,"",""]
[null,null,null,null,null,null,null,"",""]
[null,null,null,null,null,null,null,"",""]
[null,null,null,null,null,null,null,"",""]
[null,null,null,null,null,null,null,"",""]
[null,null,null,null,null,null,null,"",""]
[null,null,null,null,null,null,null,"",""]
[null,null,null,null,null,null,null,"",""]
[null,null,null,null,null,null,null,"",""]
[null,null,null,null,null,null,null,{"$f":"IF(G645=\"\",\"\",SUM(E645:G645))","v":""},{"$f":"IF(G645=\"\",\"\",AVERAGE(E645:G645))","v":""}]
[null,null,null,null,null,null,null,"",""]
[null,null,null,null,null,null,null,"",""]
[null,null,null,null,null,null,null,"",""]
[null,null,null,null,null,null,null,"",""]
[null,null,null,null,null,null,null,"",""]
[null,null,null,null,null,null,null,"",""]
[null,null,null,null,null,null,null,"",""]
[null,null,null,null,null,null,null,"",""]
[null,null,null,null,null,null,null,"",""]
[null,null,null,null,null,null,null,"",""]
[null,null,null,null,null,null,null,"",""]
[null,null,null,null,null,null,null,"",""]
[null,null,null,null,null,null,null,"",""]
[null,null,null,null,null,null,null,"",""]
[null,null,null,null,null,null,null,"",""]
[null,null,null,null,null,null,null,"",""]
[null,null,null,null,null,null,null,"",""]
[null,null,null,null,null,null,null,"",""]
[null,null,null,null,null,null,null,"",""]
[null,null,null,null,null,null,null,"",""]
[null,null,null,null,null,null,null,"",""]
[null,null,null,null,null,null,null,"",""]
[null,null,null,null,null,null,null,"",""]
[null,null,null,null,null,null,null,"",""]
[null,null,null,null,null,null,null,"",""]
[null,null,null,null,null,null,null,"",""]
[null,null,null,null,null,null,null,"",""]
[null,null,null,null,null,null,null,"",""]
[null,null,null,null,null,null,null,"",""]
[null,null,null,null,null,null,null,"",""]
[null,null,null,null,null,null,null,"",""]
[null,null,null,null,null,null,null,"",""]
[null,null,null,null,null,null,null,"",""]
[null,null,null,null,null,null,null,"",""]
[null,null,null,null,null,null,null,"",""]
[null,null,null,null,null,null,null,"",""]
[null,null,null,null,null,null,null,"",""]
[null,null,null,null,null,null,null,"",""]
[null,null,null,null,null,null,null,"",""]
[null,null,null,null,null,null,null,"",""]
[null,null,null,null,null,null,null,"",""]
[null,null,null,null,null,null,null,"",""]
[null,null,null,null,null,null,null,"",""]
[null,null,null,null,null,null,null,"",""]
[null,null,null,null,null,null,null,"",""]
[null,null,null,null,null,null,null,"",""]
[null,null,null,null,null,null,null,"",""]
[null,null,null,null,null,null,null,"",""]
[null,null,null,null,null,null,null,"",""]
[null,null,null,null,null,null,null,"",""]
[null,null,null,null,null,null,null,"",""]
[null,null,null,null,null,null,null,"",""]
[null,null,null,null,null,null,null,"",""]
[null,null,null,null,null,null,null,"",""]
[null,null,null,null,null,null,null,"",""]
[null,null,null,null,null,null,null,"",""]
[null,null,null,null,null,null,null,"",""]
[null,null,null,null,null,null,null,"",""]
[null,null,null,null,null,null,null,"",""]
[null,null,null,null,null,null,null,"",""]
[null,null,null,null,null,null,null,"",""]
[null,null,null,null,null,null,null,"",""]
[null,null,null,null,null,null,null,"",""]
[null,null,null,null,null,null,null,{"$f":"IF(G709=\"\",\"\",SUM(E709:G709))","v":""},{"$f":"IF(G709=\"\",\"\",AVERAGE(E709:G709))","v":""}]
[null,null,null,null,null,null,null,"",""]
[null,null,null,null,null,null,null,"",""]
[null,null,null,null,null,null,null,"",""]
[null,null,null,null,null,null,null,"",""]
[null,null,null,null,null,null,null,"",""]
[null,null,null,null,null,null,null,"",""]
[null,null,null,null,null,null,null,"",""]
[null,null,null,null,null,null,null,"",""]
[null,null,null,null,null,null,null,"",""]
[null,null,null,null,null,null,null,"",""]
[null,null,null,null,null,null,null,"",""]
[null,null,null,null,null,null,null,"",""]
[null,null,null,null,null,null,null,"",""]
[null,null,null,null,null,null,null,"",""]
[null,null,null,null,null,null,null,"",""]
[null,null,null,null,null,null,null,"",""]
[null,null,null,null,null,null,null,"",""]
[null,null,null,null,null,null,null,"",""]
[null,null,null,null,null,null,null,"",""]
[null,null,null,null,null,null,null,"",""]
[null,null,null,null,null,null,null,"",""]
[null,null,null,null,null,null,null,"",""]
[null,null,null,null,null,null,null,"",""]
[null,null,null,null,null,null,null,"",""]
[null,null,null,null,null,null,null,"",""]
[null,null,null,null,null,null,null,"",""]
[null,null,null,null,null,null,null,"",""]
[null,null,null,null,null,null,null,"",""]
[null,null,null,null,null,null,null,"",""]
[null,null,null,null,null,null,null,"",""]
[null,null,null,null,null,null,null,"",""]
[null,null,null,null,null,null,null,"",""]
[null,null,null,null,null,null,null,"",""]
[null,null,null,null,null,null,null,"",""]
[null,null,null,null,null,null,null,"",""]
[null,null,null,null,null,null,null,"",""]
[null,null,null,null,null,null,null,"",""]
[null,null,null,null,null,null,null,"",""]
[null,null,null,null,null,null,null,"",""]
[null,null,null,null,null,null,null,"",""]
[null,null,null,null,null,null,null,"",""]
[null,null,null,null,null,null,null,"",""]
[null,null,null,null,null,null,null,"",""]
[null,null,null,null,null,null,null,"",""]
[null,null,null,null,null,null,null,"",""]
[null,null,null,null,null,null,null,"",""]
[null,null,null,null,null,null,null,"",""]
[null,null,null,null,null,null,null,"",""]
[null,null,null,null,null,null,null,"",""]
[null,null,null,null,null,null,null,"",""]
[null,null,null,null,null,null,null,"",""]
[null,null,null,null,null,null,null,"",""]
[null,null,null,null,null,null,null,"",""]
[null,null,null,null,null,null,null,"",""]
[null,null,null,null,null,null,null,"",""]
[null,null,null,null,null,null,null,"",""]
[null,null,null,null,null,null,null,"",""]
[null,null,null,null,null,null,null,"",""]
[null,null,null,null,null,null,null,"",""]
[null,null,null,null,null,null,null,"",""]
[null,null,null,null,null,null,null,"",""]
[null,null,null,null,null,null,null,"",""]
[null,null,null,null,null,null,null,"",""]
[null,null,null,null,null,null,null,{"$f":"IF(G773=\"\",\"\",SUM(E773:G773))","v":""},{"$f":"IF(G773=\"\",\"\",AVERAGE(E773:G773))","v":""}]
[null,null,null,null,null,null,null,"",""]
[null,null,null,null,null,null,null,"",""]
[null,null,null,null,null,null,null,"",""]
[null,null,null,null,null,null,null,"",""]
[null,null,null,null,null,null,null,"",""]
[null,null,null,null,null,null,null,"",""]
[null,null,null,null,null,null,null,"",""]
[null,null,null,null,null,null,null,"",""]
[null,null,null,null,null,null,null,"",""]
[null,null,null,null,null,null,null,"",""]
[null,null,null,null,null,null,null,"",""]
[null,null,null,null,null,null,null,"",""]
[null,null,null,null,null,null,null,"",""]
[null,null,null,null,null,null,null,"",""]
[null,null,null,null,null,null,null,"",""]
[null,null,null,null,null,null,null,"",""]
[null,null,null,null,null,null,null,"",""]
[null,null,null,null,null,null,null,"",""]
[null,null,null,null,null,null,null,"",""]
[null,null,null,null,null,null,null,"",""]
[null,null,null,null,null,null,null,"",""]
[null,null,null,null,null,null,null,"",""]
[null,null,null,null,null,null,null,"",""]
[null,null,null,null,null,null,null,"",""]
[null,null,null,null,null,null,null,"",""]
[null,null,null,null,null,null,null,"",""]
[null,null,null,null,null,null,null,"",""]
[null,null,null,null,null,null,null,"",""]
[null,null,null,null,null,null,null,"",""]
[null,null,null,null,null,null,null,"",""]
[null,null,null,null,null,null,null,"",""]
[null,null,null,null,null,null,null,"",""]
[null,null,null,null,null,null,null,"",""]
[null,null,null,null,null,null,null,"",""]
[null,null,null,null,null,null,null,"",""]
[null,null,null,null,null,null,null,"",""]
[null,null,null,null,null,null,null,"",""]
[null,null,null,null,null,null,null,"",""]
[null,null,null,null,null,null,null,"",""]
[null,null,null,null,null,null,null,"",""]
[null,null,null,null,null,null,null,"",""]
[null,null,null,null,null,null,null,"",""]
[null,null,null,null,null,null,null,"",""]
[null,null,null,null,null,null,null,"",""]
[null,null,null,null,null,null,null,"",""]
[null,null,null,null,null,null,null,"",""]
[null,null,null,null,null,null,null,"",""]
[null,null,null,null,null,null,null,"",""]
[null,null,null,null,null,null,null,"",""]
[null,null,null,null,null,null,null,"",""]
[null,null,null,null,null,null,null,"",""]
[null,null,null,null,null,null,null,"",""]
[null,null,null,null,null,null,null,"",""]
[null,null,null,null,null,null,null,"",""]
[null,null,null,null,null,null,null,"",""]
[null,null,null,null,null,null,null,"",""]
[null,null,null,null,null,null,null,"",""]
[null,null,null,null,null,null,null,"",""]
[null,null,null,null,null,null,null,"",""]
[null,null,null,null,null,null,null,"",""]
[null,null,null,null,null,null,null,"",""]
[null,null,null,null,null,null,null,"",""]
[null,null,null,null,null,null,null,"",""]
[null,null,null,null,null,null,null,{"$f":"IF(G837=\"\",\"\",SUM(E837:G837))","v":""},{"$f":"IF(G837=\"\",\"\",AVERAGE(E837:G837))","v":""}]
[null,null,null,null,null,null,null,"",""]
[null,null,null,null,null,null,null,"",""]
[null,null,null,null,null,null,null,"",""]
[null,null,null,null,null,null,null,"",""]
[null,null,null,null,null,null,null,"",""]
[null,null,null,null,null,null,null,"",""]
[null,null,null,null,null,null,null,"",""]
[null,null,null,null,null,null,null,"",""]
[null,null,null,null,null,null,null,"",""]
[null,null,null,null,null,null,null,"",""]
[null,null,null,null,null,null,null,"",""]
[null,null,null,null,null,null,null,"",""]
[null,null,null,null,null,null,null,"",""]
[null,null,null,null,null,null,null,"",""]
[null,null,null,null,null,null,null,"",""]
[null,null,null,null,null,null,null,"",""]
[null,null,null,null,null,null,null,"",""]
[null,null,null,null,null,null,null,"",""]
[null,null,null,null,null,null,null,"",""]
[null,null,null,null,null,null,null,"",""]
[null,null,null,null,null,null,null,"",""]
[null,null,null,null,null,null,null,"",""]
[null,null,null,null,null,null,null,"",""]
[null,null,null,null,null,null,null,"",""]
[null,null,null,null,null,null,null,"",""]
[null,null,null,null,null,null,null,"",""]
[null,null,null,null,null,null,null,"",""]
[null,null,null,null,null,null,null,"",""]
[null,null,null,null,null,null,null,"",""]
[null,null,null,null,null,null,null,"",""]
[null,null,null,null,null,null,null,"",""]
[null,null,null,null,null,null,null,"",""]
[null,null,null,null,null,null,null,"",""]
[null,null,null,null,null,null,null,"",""]
[null,null,null,null,null,null,null,"",""]
[null,null,null,null,null,null,null,"",""]
[null,null,null,null,null,null,null,"",""]
[null,null,null,null,null,null,null,"",""]
[null,null,null,null,null,null,null,"",""]
[null,null,null,null,null,null,null,"",""]
[null,null,null,null,null,null,null,"",""]
[null,null,null,null,null,null,null,"",""]
[null,null,null,null,null,null,null,"",""]
[null,null,null,null,null,null,null,"",""]
[null,null,null,null,null,null,null,"",""]
[null,null,null,null,null,null,null,"",""]
[null,null,null,null,null,null,null,"",""]
[null,null,null,null,null,null,null,"",""]
[null,null,null,null,null,null,null,"",""]
[null,null,null,null,null,null,null,"",""]
[null,null,null,null,null,null,null,"",""]
[null,null,null,null,null,null,null,"",""]
[null,null,null,null,null,null,null,"",""]
[null,null,null,null,null,null,null,"",""]
[null,null,null,null,null,null,null,"",""]
[null,null,null,null,null,null,null,"",""]
[null,null,null,null,null,null,null,"",""]
[null,null,null,null,null,null,null,"",""]
[null,null,null,null,null,null,null,"",""]
[null,null,null,null,null,null,null,"",""]
[null,null,null,null,null,null,null,"",""]
[null,null,null,null,null,null,null,"",""]
[null,null,null,null,null,null,null,"",""]
[null,null,null,null,null,null,null,{"$f":"IF(G901=\"\",\"\",SUM(E901:G901))","v":""},{"$f":"IF(G901=\"\",\"\",AVERAGE(E901:G901))","v":""}]
[null,null,null,null,null,null,null,"",""]
[null,null,null,null,null,null,null,"",""]
[null,null,null,null,null,null,null,"",""]
[null,null,null,null,null,null,null,"",""]
[null,null,null,null,null,null,null,"",""]
[null,null,null,null,null,null,null,"",""]
[null,null,null,null,null,null,null,"",""]
[null,null,null,null,null,null,null,"",""]
[null,null,null,null,null,null,null,"",""]
[null,null,null,null,null,null,null,"",""]
[null,null,null,null,null,null,null,"",""]
[null,null,null,null,null,null,null,"",""]
[null,null,null,null,null,null,null,"",""]
[null,null,null,null,null,null,null,"",""]
[null,null,null,null,null,null,null,"",""]
[null,null,null,null,null,null,null,"",""]
[null,null,null,null,null,null,null,"",""]
[null,null,null,null,null,null,null,"",""]
[null,null,null,null,null,null,null,"",""]
[null,null,null,null,null,null,null,"",""]
[null,null,null,null,null,null,null,"",""]
[null,null,null,null,null,null,null,"",""]
[null,null,null,null,null,null,null,"",""]
[null,null,null,null,null,null,null,"",""]
[null,null,null,null,null,null,null,"",""]
[null,null,null,null,null,null,null,"",""]
[null,null,null,null,null,null,null,"",""]
[null,null,null,null,null,null,null,"",""]
[null,null,null,null,null,null,null,"",""]
[null,null,null,null,null,null,null,"",""]
[null,null,null,null,null,null,null,"",""]
[null,null,null,null,null,null,null,"",""]
[null,null,null,null,null,null,null,"",""]
[null,null,null,null,null,null,null,"",""]
[null,null,null,null,null,null,null,"",""]
[null,null,null,null,null,null,null,"",""]
[null,null,null,null,null,null,null,"",""]
[null,null,null,null,null,null,null,"",""]
[null,null,null,null,null,null,null,"",""]
[null,null,null,null,null,null,null,"",""]
[null,null,null,null,null,null,null,"",""]
[null,null,null,null,null,null,null,"",""]
[null,null,null,null,null,null,null,"",""]
[null,null,null,null,null,null,null,"",""]
[null,null,null,null,null,null,null,"",""]
[null,null,null,null,null,null,null,"",""]
[null,null,null,null,null,null,null,"",""]
[null,null,null,null,null,null,null,"",""]
[null,null,null,null,null,null,null,"",""]
[null,null,null,null,null,null,null,"",""]
[null,null,null,null,null,null,null,"",""]
[null,null,null,null,null,null,null,"",""]
[null,null,null,null,null,null,null,"",""]
[null,null,null,null,null,null,null,"",""]
[null,null,null,null,null,null,null,"",""]
[null,null,null,null,null,null,null,"",""]
[null,null,null,null,null,null,null,"",""]
[null,null,null,null,null,null,null,"",""]
[null,null,null,null,null,null,null,"",""]
[null,null,null,null,null,null,null,"",""]
[null,null,null,null,null,null,null,"",""]
[null,null,null,null,null,null,null,"",""]
[null,null,null,null,null,null,null,"",""]
[null,null,null,null,null,null,null,{"$f":"IF(G965=\"\",\"\",SUM(E965:G965))","v":""},{"$f":"IF(G965=\"\",\"\",AVERAGE(E965:G965))","v":""}]
[null,null,null,null,null,null,null,"",""]
[null,null,null,null,null,null,null,"",""]
[null,null,null,null,null,null,null,"",""]
[null,null,null,null,null,null,null,"",""]
[null,null,null,null,null,null,null,"",""]
[null,null,null,null,null,null,null,"",""]
[null,null,null,null,null,null,null,"",""]
[null,null,null,null,null,null,null,"",""]
[null,null,null,null,null,null,null,"",""]
[null,null,null,null,null,null,null,"",""]
[null,null,null,null,null,null,null,"",""]
[null,null,null,null,null,null,null,"",""]
[null,null,null,null,null,null,null,"",""]
[null,null,null,null,null,null,null,"",""]
[null,null,null,null,null,null,null,"",""]
[null,null,null,null,null,null,null,"",""]
[null,null,null,null,null,null,null,"",""]
[null,null,null,null,null,null,null,"",""]
[null,null,null,null,null,null,null,"",""]
[null,null,null,null,null,null,null,"",""]
[null,null,null,null,null,null,null,"",""]
[null,null,null,null,null,null,null,"",""]
[null,null,null,null,null,null,null,"",""]
[null,null,null,null,null,null,null,"",""]
[null,null,null,null,null,null,null,"",""]
[null,null,null,null,null,null,null,"",""]
[null,null,null,null,null,null,null,"",""]
[null,null,null,null,null,null,null,"",""]
[null,null,null,null,null,null,null,"",""]
[null,null,null,null,null,null,null,"",""]
[null,null,null,null,null,null,null,"",""]
[null,null,null,null,null,null,null,"",""]

{"sheet":"Ejercicio 03","index":3,"n_rows":31,"n_cols":9,"rows_kept":31,"cut":false,"hidden":false,"merged":[]}
[]
[]
[null,"Nombre","Apellido","Sucursal","Enero","Febrero","Marzo","Total","Promedio"]
[null,"Javier","Aguilar","Lima",85145,92899,26960,{"$f":"IF(G4=\"\",\"\",SUM(E4:G4))","v":205004},{"$f":"IF(G4=\"\",\"\",AVERAGE(E4:G4))","v":68334.666666666672}]
[null,"María","Borda","Arequipa",84803,69642,84184,{"$f":"IF(G5=\"\",\"\",SUM(E5:G5))","v":238629},{"$f":"IF(G5=\"\",\"\",AVERAGE(E5:G5))","v":79543}]
[null,"José","Bryce","Trujillo",32521,76534,94299,{"$f":"IF(G6=\"\",\"\",SUM(E6:G6))","v":203354},{"$f":"IF(G6=\"\",\"\",AVERAGE(E6:G6))","v":67784.666666666672}]
[null,"Estela","Calderón","Chiclayo",34281,40328,11692,{"$f":"IF(G7=\"\",\"\",SUM(E7:G7))","v":86301},{"$f":"IF(G7=\"\",\"\",AVERAGE(E7:G7))","v":28767}]
[null,"Francisco","Cárdenas","Piura",18264,62469,29946,{"$f":"IF(G8=\"\",\"\",SUM(E8:G8))","v":110679},{"$f":"IF(G8=\"\",\"\",AVERAGE(E8:G8))","v":36893}]
[null,"Andrés","Cervantes","Ayacucho",17152,23153,88056,{"$f":"IF(G9=\"\",\"\",SUM(E9:G9))","v":128361},{"$f":"IF(G9=\"\",\"\",AVERAGE(E9:G9))","v":42787}]
[null,"Melania","Chávez","Lima",77069,40416,53232,{"$f":"IF(G10=\"\",\"\",SUM(E10:G10))","v":170717},{"$f":"IF(G10=\"\",\"\",AVERAGE(E10:G10))","v":56905.666666666664}]
[null,"Magdyel","Chumpitaz","Arequipa",90196,47127,20152,{"$f":"IF(G11=\"\",\"\",SUM(E11:G11))","v":157475},{"$f":"IF(G11=\"\",\"\",AVERAGE(E11:G11))","v":52491.666666666664}]
[null,"Lazslo","Contreras","Trujillo",45978,54077,77279,{"$f":"IF(G12=\"\",\"\",SUM(E12:G12))","v":177334},{"$f":"IF(G12=\"\",\"\",AVERAGE(E12:G12))","v":59111.333333333336}]
[null,"Efraín","Díaz","Chiclayo",57926,90363,61737,{"$f":"IF(G13=\"\",\"\",SUM(E13:G13))","v":210026},{"$f":"IF(G13=\"\",\"\",AVERAGE(E13:G13))","v":70008.666666666672}]
[null,"Rosana","Fernández","Trujillo",79867,76454,56530,{"$f":"IF(G14=\"\",\"\",SUM(E14:G14))","v":212851},{"$f":"IF(G14=\"\",\"\",AVERAGE(E14:G14))","v":70950.333333333328}]
[null,"Piero","Guerrero","Chiclayo",74192,83011,87361,{"$f":"IF(G15=\"\",\"\",SUM(E15:G15))","v":244564},{"$f":"IF(G15=\"\",\"\",AVERAGE(E15:G15))","v":81521.333333333328}]
[null,"Miguel","Kovacs","Piura",96587,46732,16608,{"$f":"IF(G16=\"\",\"\",SUM(E16:G16))","v":159927},{"$f":"IF(G16=\"\",\"\",AVERAGE(E16:G16))","v":53309}]
[null,"Pedro","La Guardia","Ayacucho",12250,77462,94059,{"$f":"IF(G17=\"\",\"\",SUM(E17:G17))","v":183771},{"$f":"IF(G17=\"\",\"\",AVERAGE(E17:G17))","v":61257}]
[null,"Mario","Lombardi","Lima",72995,12901,17199,{"$f":"IF(G18=\"\",\"\",SUM(E18:G18))","v":103095},{"$f":"IF(G18=\"\",\"\",AVERAGE(E18:G18))","v":34365}]
[null,"Alfredo","López","Arequipa",65262,26767,23071,{"$f":"IF(G19=\"\",\"\",SUM(E19:G19))","v":115100},{"$f":"IF(G19=\"\",\"\",AVERAGE(E19:G19))","v":38366.666666666664}]
[null,"Ernesto","Oblitas","Piura",58630,98759,80251,{"$f":"IF(G20=\"\",\"\",SUM(E20:G20))","v":237640},{"$f":"IF(G20=\"\",\"\",AVERAGE(E20:G20))","v":79213.333333333328}]
[null,"Jorge","Oviedo","Ayacucho",42897,43175,80012,{"$f":"IF(G21=\"\",\"\",SUM(E21:G21))","v":166084},{"$f":"IF(G21=\"\",\"\",AVERAGE(E21:G21))","v":55361.333333333336}]
[null,"Gustavo","Paredes","Lima",43224,16274,92572,{"$f":"IF(G22=\"\",\"\",SUM(E22:G22))","v":152070},{"$f":"IF(G22=\"\",\"\",AVERAGE(E22:G22))","v":50690}]
[null,"Juan","Peredo","Arequipa",21543,81625,24877,{"$f":"IF(G23=\"\",\"\",SUM(E23:G23))","v":128045},{"$f":"IF(G23=\"\",\"\",AVERAGE(E23:G23))","v":42681.666666666664}]
[null,"Héctor","Pimentel","Arequipa",61156,87549,61594,{"$f":"IF(G24=\"\",\"\",SUM(E24:G24))","v":210299},{"$f":"IF(G24=\"\",\"\",AVERAGE(E24:G24))","v":70099.666666666672}]
[null,"Claudio","Pino","Trujillo",49542,26591,21125,{"$f":"IF(G25=\"\",\"\",SUM(E25:G25))","v":97258},{"$f":"IF(G25=\"\",\"\",AVERAGE(E25:G25))","v":32419.333333333332}]
[null,"Paolo","Pizarro","Chiclayo",87126,67508,76407,{"$f":"IF(G26=\"\",\"\",SUM(E26:G26))","v":231041},{"$f":"IF(G26=\"\",\"\",AVERAGE(E26:G26))","v":77013.666666666672}]
[null,"Luis","Pozada","Piura",21109,96663,95217,{"$f":"IF(G27=\"\",\"\",SUM(E27:G27))","v":212989},{"$f":"IF(G27=\"\",\"\",AVERAGE(E27:G27))","v":70996.333333333328}]
[null,"Alfredo","Ugaz","Ayacucho",20142,42038,50803,{"$f":"IF(G28=\"\",\"\",SUM(E28:G28))","v":112983},{"$f":"IF(G28=\"\",\"\",AVERAGE(E28:G28))","v":37661}]
[null,"Santiago","Urbina","Lima",39059,71723,57633,{"$f":"IF(G29=\"\",\"\",SUM(E29:G29))","v":168415},{"$f":"IF(G29=\"\",\"\",AVERAGE(E29:G29))","v":56138.333333333336}]
[null,"Yolanda","Vargas","Arequipa",56517,32534,74419,{"$f":"IF(G30=\"\",\"\",SUM(E30:G30))","v":163470},{"$f":"IF(G30=\"\",\"\",AVERAGE(E30:G30))","v":54490}]
[null,"Alicia","Wiese","Trujillo",32403,40226,90368,{"$f":"IF(G31=\"\",\"\",SUM(E31:G31))","v":162997},{"$f":"IF(G31=\"\",\"\",AVERAGE(E31:G31))","v":54332.333333333336}]

{"sheet":"Ejercicio 04","index":4,"n_rows":31,"n_cols":9,"rows_kept":31,"cut":false,"hidden":false,"merged":[]}
[]
[]
[null,"Nombre","Apellido","Sucursal","Enero","Febrero","Marzo","Total","Promedio"]
[null,"Javier","Aguilar","Lima",85145,92899,26960,{"$f":"IF(G4=\"\",\"\",SUM(E4:G4))","v":205004},{"$f":"IF(G4=\"\",\"\",AVERAGE(E4:G4))","v":68334.666666666672}]
[null,"María","Borda","Arequipa",84803,69642,84184,{"$f":"IF(G5=\"\",\"\",SUM(E5:G5))","v":238629},{"$f":"IF(G5=\"\",\"\",AVERAGE(E5:G5))","v":79543}]
[null,"José","Bryce","Trujillo",32521,76534,94299,203354,67784.666666666672]
[null,"Estela","Calderón","Chiclayo",34281,40328,11692,86301,28767]
[null,"Francisco","Cárdenas","Piura",18264,62469,29946,110679,36893]
[null,"Andrés","Cervantes","Ayacucho",17152,23153,88056,128361,42787]
[null,"Melania","Chávez","Lima",77069,40416,53232,170717,56905.666666666664]
[null,"Magdyel","Chumpitaz","Arequipa",90196,47127,20152,157475,52491.666666666664]
[null,"Lazslo","Contreras","Trujillo",45978,54077,77279,177334,59111.333333333336]
[null,"Efraín","Díaz","Chiclayo",57926,90363,61737,210026,70008.666666666672]
[null,"Rosana","Fernández","Trujillo",79867,76454,56530,212851,70950.333333333328]
[null,"Piero","Guerrero","Chiclayo",74192,83011,87361,244564,81521.333333333328]
[null,"Miguel","Kovacs","Piura",96587,46732,16608,159927,53309]
[null,"Pedro","La Guardia","Ayacucho",12250,77462,94059,183771,61257]
[null,"Mario","Lombardi","Lima",72995,12901,17199,103095,34365]
[null,"Alfredo","López","Arequipa",65262,26767,23071,115100,38366.666666666664]
[null,"Ernesto","Oblitas","Piura",58630,98759,80251,237640,79213.333333333328]
[null,"Jorge","Oviedo","Ayacucho",42897,43175,80012,166084,55361.333333333336]
[null,"Gustavo","Paredes","Lima",43224,16274,92572,152070,50690]
[null,"Juan","Peredo","Arequipa",21543,81625,24877,128045,42681.666666666664]
[null,"Héctor","Pimentel","Arequipa",61156,87549,61594,210299,70099.666666666672]
[null,"Claudio","Pino","Trujillo",49542,26591,21125,97258,32419.333333333332]
[null,"Paolo","Pizarro","Chiclayo",87126,67508,76407,231041,77013.666666666672]
[null,"Luis","Pozada","Piura",21109,96663,95217,212989,70996.333333333328]
[null,"Alfredo","Ugaz","Ayacucho",20142,42038,50803,112983,37661]
[null,"Santiago","Urbina","Lima",39059,71723,57633,168415,56138.333333333336]
[null,"Yolanda","Vargas","Arequipa",56517,32534,74419,163470,54490]
[null,"Alicia","Wiese","Trujillo",32403,40226,90368,162997,54332.333333333336]

{"sheet":"Ejercicio 05","index":5,"n_rows":36,"n_cols":15,"rows_kept":36,"cut":false,"hidden":false,"merged":[]}
[]
[]
[]
[]
[]
[]
[]
[null,"Nombre","Apellido","Sucursal","Enero",null,"Nombre","Apellido","Sucursal","Febrero",null,"Nombre","Apellido","Sucursal","Marzo"]
[null,"Javier","Aguilar","Lima",85145,null,"Javier","Aguilar","Lima",92899,null,"Javier","Aguilar","Lima",26960]
[null,"María","Borda","Arequipa",84803,null,"María","Borda","Arequipa",69642,null,"María","Borda","Arequipa",84184]
[null,"José","Bryce","Trujillo",32521,null,"José","Bryce","Trujillo",76534,null,"José","Bryce","Trujillo",94299]
[null,"Estela","Calderón","Chiclayo",34281,null,"Estela","Calderón","Chiclayo",40328,null,"Estela","Calderón","Chiclayo",11692]
[null,"Francisco","Cárdenas","Piura",18264,null,"Francisco","Cárdenas","Piura",62469,null,"Francisco","Cárdenas","Piura",29946]
[null,"Andrés","Cervantes","Ayacucho",17152,null,"Andrés","Cervantes","Ayacucho",23153,null,"Andrés","Cervantes","Ayacucho",88056]
[null,"Melania","Chávez","Lima",77069,null,"Melania","Chávez","Lima",40416,null,"Melania","Chávez","Lima",53232]
[null,"Magdyel","Chumpitaz","Arequipa",90196,null,"Magdyel","Chumpitaz","Arequipa",47127,null,"Magdyel","Chumpitaz","Arequipa",20152]
[null,"Lazslo","Contreras","Trujillo",45978,null,"Lazslo","Contreras","Trujillo",54077,null,"Lazslo","Contreras","Trujillo",77279]
[null,"Efraín","Díaz","Chiclayo",57926,null,"Efraín","Díaz","Chiclayo",90363,null,"Efraín","Díaz","Chiclayo",61737]
[null,"Rosana","Fernández","Trujillo",79867,null,"Rosana","Fernández","Trujillo",76454,null,"Rosana","Fernández","Trujillo",56530]
[null,"Piero","Guerrero","Chiclayo",74192,null,"Piero","Guerrero","Chiclayo",83011,null,"Piero","Guerrero","Chiclayo",87361]
[null,"Miguel","Kovacs","Piura",96587,null,"Miguel","Kovacs","Piura",46732,null,"Miguel","Kovacs","Piura",16608]
[null,"Pedro","La Guardia","Ayacucho",12250,null,"Pedro","La Guardia","Ayacucho",77462,null,"Pedro","La Guardia","Ayacucho",94059]
[null,null,null,null,null,null,"Mario","Lombardi","Lima",12901,null,"Mario","Lombardi","Lima",17199]
[null,null,null,null,null,null,"Alfredo","López","Arequipa",26767,null,"Alfredo","López","Arequipa",23071]
[null,null,null,null,null,null,"Ernesto","Oblitas","Piura",98759,null,"Ernesto","Oblitas","Piura",80251]
[null,null,null,null,null,null,"Jorge","Oviedo","Ayacucho",43175,null,"Jorge","Oviedo","Ayacucho",80012]
[null,null,null,null,null,null,null,null,null,null,null,"Gustavo","Paredes","Lima",92572]
[null,null,null,null,null,null,null,null,null,null,null,"Juan","Peredo","Arequipa",24877]
[null,null,null,null,null,null,null,null,null,null,null,"Héctor","Pimentel","Arequipa",61594]
[null,null,null,null,null,null,null,null,null,null,null,"Claudio","Pino","Trujillo",21125]
[null,null,null,null,null,null,null,null,null,null,null,"Paolo","Pizarro","Chiclayo",76407]
[null,null,null,null,null,null,null,null,null,null,null,"Luis","Pozada","Piura",95217]
[null,null,null,null,null,null,null,null,null,null,null,"Alfredo","Ugaz","Ayacucho",50803]
[null,null,null,null,null,null,null,null,null,null,null,"Santiago","Urbina","Lima",57633]
[null,null,null,null,null,null,null,null,null,null,null,"Yolanda","Vargas","Arequipa",74419]
[null,null,null,null,null,null,null,null,null,null,null,"Alicia","Wiese","Trujillo",90368]

{"sheet":"Hoja1","index":6,"n_rows":17,"n_cols":12,"rows_kept":17,"cut":false,"hidden":false,"merged":[]}
[]
[]
[null,"Paola andrea"]
[]
[null,null,null,null,null,"Paola andrea",null,null,null,null,null,"Paola andrea"]
[null,"Montecinos",null,null,null,null,"Paola andrea"]
[null,null,null,null,null,null,null,null,null,"Paola andrea"]
[]
[]
[null,null,null,null,null,null,null,null,"Paola andrea"]
[null,null,null,null,null,"Paola andrea"]
[]
[]
[null,null,null,null,null,null,null,null,null,null,"Paola andrea"]
[]
[]
[null,"Paola andrea"]